[Event "Bruges Masters 2018"]
[Site "Brugge"]
[Date "2018.08.16"]
[Round "8"]
[White "Zeng, Chongsheng"]
[Black "Korneev, Oleg"]
[Result "0-1"]
[ECO "E04"]
[WhiteElo "2539"]
[BlackElo "2513"]
[Annotator "ChessBase"]
[PlyCount "114"]
[EventDate "2018.08.12"]
[EventType "swiss"]
[EventCountry "BEL"]
[SourceTitle "playchess.com"]
[Source "ChessBase"]
[SourceQuality "1"]
[TimeControl "5400+30"]

1. d4 {[%emt 0:00:00]} d5 {[%emt 0:09:23]} 2. c4 {[%emt 0:00:00]} e6 {[%emt 0:00:23]} 3. Nf3 {[%emt 0:00:09]} Nf6 {[%emt 0:00:03]} 4. g3 {[%emt 0:00:27]} dxc4 {[%emt 0:05:25]} 5. Bg2 {[%emt 0:00:06]} Bd7 {[%emt 0:01:24]} 6. Ne5 {[%emt 0:05:23]} Bc6 {[%emt 0:00:39]} 7. Nxc6 {[%emt 0:00:33]} Nxc6 {[%emt 0:00:42]} 8. O-O {[%emt 0:03:22]} Qd7 {[%emt 0:09:28]} 9. e3 {[%emt 0:03:21]} Rb8 {[%emt 0:02:49]} 10. Qe2 {[%emt 0:13:27]} e5 {[%emt 0:17:25]} 11. Nc3 {[%emt 0:14:40]} Bd6 {[%emt 0:03:04]} 12. Qxc4 {[%emt 0:02:55]} exd4 {[%emt 0:00:25]} 13. exd4 {[%emt 0:02:07]} O-O {[%emt 0:01:27]} 14. Re1 {[%emt 0:08:44]} h6 {[%emt 0:01:40]} 15. d5 {[%emt 0:02:35]} Ne5 {[%emt 0:15:14]} 16. Qd4 {[%emt 0:00:20]} b6 {[%emt 0:12:48]} 17. Bf4 {[%emt 0:00:08]} Ng6 {[%emt 0:02:32]} 18. Bxd6 {[%emt 0:00:19]} cxd6 {[%emt 0:00:01]} 19. Bf1 {[%emt 0:00:22]} Ne5 {[%emt 0:01:02]} 20. Kg2 {[%emt 0:00:42]} b5 {[%emt 0:00:52]} 21. f4 {[%emt 0:02:32]} Ng6 {[%emt 0:05:54]} 22. Rac1 {[%emt 0:14:23]} a6 {[%emt 0:00:31]} 23. Be2 {[%emt 0:08:31]} Rfe8 {[%emt 0:00:10]} 24. Bf3 {[%emt 0:00:18]} Ne7 {[%emt 0:00:59]} 25. Qf2 {[%emt 0:01:44]} b4 {[%emt 0:03:14]} 26. Ne4 {[%emt 0:01:05]} Nexd5 {[%emt 0:00:49]} 27. Nxf6+ {[%emt 0:06:40]} Nxf6 {[%emt 0:00:04]} 28. Rxe8+ {[%emt 0:00:28]} Qxe8 {[%emt 0:01:33]} 29. Rc6 {[%emt 0:01:24]} a5 {[%emt 0:02:58]} 30. Qe2 {[%emt 0:01:04]} Qd8 {[%emt 0:01:09]} 31. Qa6 {[%emt 0:02:01]} d5 {[%emt 0:00:18]} 32. Rc5 {[%emt 0:00:12]} d4 {[%emt 0:00:56]} 33. Qxa5 {[%emt 0:00:23]} Qe8 {[%emt 0:00:35]} 34. Rc4 {[%emt 0:04:14]} d3 {[%emt 0:00:31]} 35. Rxb4 {[%emt 0:00:04]} Rc8 {[%emt 0:00:23]} 36. Qe5 {[%emt 0:01:58]} Rc2+ {[%emt 0:00:33]} 37. Kh3 {[%emt 0:00:12]} Qd7+ {[%emt 0:00:08]} 38. g4 {[%emt 0:00:35]} h5 {[%emt 0:00:32]} 39. Rb8+ {[%emt 0:00:34]} Rc8 {[%emt 0:00:23]} 40. Rxc8+ {[%emt 0:01:18]} Qxc8 {[%emt 0:00:01]} 41. Qf5 {[%emt 0:00:37]} hxg4+ {[%emt 0:00:44]} 42. Bxg4 {[%emt 0:00:01]} Qd8 {[%emt 0:01:17]} 43. Bd1 {[%emt 0:00:51]} Qd4 {[%emt 0:00:22]} 44. Kg2 {[%emt 0:00:34]} Qxb2+ {[%emt 0:00:06]} 45. Kg3 {[%emt 0:00:29]} Qc3 {[%emt 0:00:41]} 46. Bf3 {[%emt 0:00:36]} d2 {[%emt 0:00:15]} 47. Qb1 {[%emt 0:00:26]} g6 {[%emt 0:01:05]} 48. Kg2 {[%emt 0:00:33]} Kg7 {[%emt 0:00:27]} 49. f5 {[%emt 0:00:31]} g5 {[%emt 0:00:06]} 50. Kf2 {[%emt 0:00:30]} g4 {[%emt 0:00:12]} 51. Be2 {[%emt 0:00:16]} Qc5+ {[%emt 0:00:37]} 52. Kg2 {[%emt 0:00:26]} Qe3 {[%emt 0:00:01]} 53. Qf1 {[%emt 0:00:33]} Qe4+ {[%emt 0:01:00]} 54. Kg1 {[%emt 0:00:45]} Nd5 {[%emt 0:00:10]} 55. Qf2 {[%emt 0:00:27]} Nf4 {[%emt 0:00:19]} 56. f6+ {[%emt 0:00:25]} Kg6 {[%emt 0:00:55]} 57. Bxg4 {[%emt 0:00:14]} d1=Q+ {[%emt 0:00:52]} 0-1

[Event "Bruges Masters 2018"]
[Site "Brugge"]
[Date "2018.08.16"]
[Round "8"]
[White "Geirnaert, Steven"]
[Black "Van Foreest, Lucas"]
[Result "0-1"]
[ECO "E06"]
[WhiteElo "2427"]
[BlackElo "2488"]
[Annotator "ChessBase"]
[PlyCount "106"]
[EventDate "2018.08.12"]
[EventType "swiss"]
[EventCountry "BEL"]
[SourceTitle "playchess.com"]
[Source "ChessBase"]
[SourceQuality "1"]
[TimeControl "5400+30"]

1. d4 {[%emt 0:01:18]} Nf6 {[%emt 0:10:31]} 2. c4 {[%emt 0:00:12]} e6 {[%emt 0:00:02]} 3. Nf3 {[%emt 0:00:13]} d5 {[%emt 0:00:02]} 4. g3 {[%emt 0:02:11]} Be7 {[%emt 0:00:20]} 5. Bg2 {[%emt 0:00:11]} O-O {[%emt 0:00:03]} 6. O-O {[%emt 0:00:43]} c6 {[%emt 0:00:02]} 7. b3 {[%emt 0:00:56]} b6 {[%emt 0:00:14]} 8. Ne5 {[%emt 0:01:56]} Bb7 {[%emt 0:00:09]} 9. Ba3 {[%emt 0:03:29]} Nbd7 {[%emt 0:01:43]} 10. Nd3 {[%emt 0:05:58]} Rc8 {[%emt 0:00:55]} 11. Bxe7 {[%emt 0:02:00]} Qxe7 {[%emt 0:00:03]} 12. Nd2 {[%emt 0:02:12]} c5 {[%emt 0:01:00]} 13. dxc5 {[%emt 0:03:33]} Nxc5 {[%emt 0:00:23]} 14. Nxc5 {[%emt 0:00:31]} Rxc5 {[%emt 0:00:08]} 15. b4 {[%emt 0:01:07]} Rc7 {[%emt 0:00:49]} 16. a3 {[%emt 0:08:36]} Rfc8 {[%emt 0:15:37]} 17. cxd5 {[%emt 0:01:45]} Bxd5 {[%emt 0:00:49]} 18. e4 {[%emt 0:00:43]} Bb7 {[%emt 0:02:03]} 19. e5 {[%emt 0:00:15]} Nd5 {[%emt 0:00:27]} 20. Ne4 {[%emt 0:00:14]} Nc3 {[%emt 0:00:21]} 21. Nxc3 {[%emt 0:01:24]} Bxg2 {[%emt 0:01:33]} 22. Kxg2 {[%emt 0:00:23]} Rxc3 {[%emt 0:00:03]} 23. Qd2 {[%emt 0:01:45]} Qc7 {[%emt 0:06:26]} 24. Rfd1 {[%emt 0:01:51]} h5 {[%emt 0:09:38]} 25. Qg5 {[%emt 0:01:17]} Qc6+ {[%emt 0:01:01]} 26. Kg1 {[%emt 0:00:11]} Qf3 {[%emt 0:00:09]} 27. Rac1 {[%emt 0:04:33]} Kh7 {[%emt 0:10:34]} 28. h4 {[%emt 0:06:22]} Rxa3 {[%emt 0:02:20]} 29. Rd4 {[%emt 0:07:11]} Rd3 {[%emt 0:10:43]} 30. Rxd3 {[%emt 0:03:41]} Rxc1+ {[%emt 0:00:02]} 31. Qxc1 {[%emt 0:00:09]} Qxd3 {[%emt 0:00:02]} 32. Qc7 {[%emt 0:02:14]} Kg6 {[%emt 0:00:02]} 33. Qe7 {[%emt 0:00:34]} Qd1+ {[%emt 0:01:00]} 34. Kh2 {[%emt 0:01:35]} Qd2 {[%emt 0:00:16]} 35. Kh3 {[%emt 0:02:34]} a5 {[%emt 0:02:39]} 36. bxa5 {[%emt 0:00:34]} bxa5 {[%emt 0:00:03]} 37. f4 {[%emt 0:00:13]} Qd1 {[%emt 0:02:17]} 38. Kh2 {[%emt 0:01:19]} Qe2+ {[%emt 0:01:16]} 39. Kg1 {[%emt 0:02:23]} Qf3 {[%emt 0:00:06]} 40. Kh2 {[%emt 0:05:04]} a4 {[%emt 0:01:01]} 41. Qb4 {[%emt 0:04:08]} a3 {[%emt 0:01:20]} 42. Qb1+ {[%emt 0:00:05]} Kh6 {[%emt 0:00:16]} 43. Qc2 {[%emt 0:00:19]} Qd5 {[%emt 0:02:04]} 44. f5 {[%emt 0:01:48]} a2 {[%emt 0:00:24]} 45. Qc1+ {[%emt 0:00:18]} Kh7 {[%emt 0:00:02]} 46. fxe6 {[%emt 0:00:33]} Qxe6 {[%emt 0:00:13]} 47. Qc2+ {[%emt 0:03:49]} g6 {[%emt 0:00:02]} 48. Qa4 {[%emt 0:00:16]} Qd5 {[%emt 0:00:07]} 49. Qa7 {[%emt 0:01:07]} Kg7 {[%emt 0:00:02]} 50. Qa6 {[%emt 0:00:11]} Qd2+ {[%emt 0:00:20]} 51. Kh3 {[%emt 0:00:12]} Qf2 {[%emt 0:00:19]} 52. e6 {[%emt 0:00:55]} Qf5+ {[%emt 0:00:02]} 53. Kh2 {[%emt 0:00:43]} Qxe6 {[%emt 0:00:21]} 0-1

[Event "Bruges Masters 2018"]
[Site "Brugge"]
[Date "2018.08.16"]
[Round "8"]
[White "Ravi, Teja S."]
[Black "Beckett, Chris J"]
[Result "1/2-1/2"]
[ECO "A06"]
[WhiteElo "2374"]
[BlackElo "2155"]
[Annotator "ChessBase"]
[PlyCount "40"]
[EventDate "2018.08.12"]
[EventType "swiss"]
[EventCountry "BEL"]
[SourceTitle "playchess.com"]
[Source "ChessBase"]
[SourceQuality "1"]
[TimeControl "5400+30"]

1. d4 {[%emt 0:07:09]} e6 {[%emt 0:02:45]} 2. Nf3 {[%emt 0:00:05]} Nf6 {[%emt 0:01:59]} 3. e3 {[%emt 0:00:07]} d5 {[%emt 0:00:45]} 4. c4 {[%emt 0:00:10]} c6 {[%emt 0:07:51]} 5. b3 {[%emt 0:02:10]} Nbd7 {[%emt 0:02:06]} 6. Bb2 {[%emt 0:00:41]} Bd6 {[%emt 0:00:19]} 7. Bd3 {[%emt 0:00:09]} O-O {[%emt 0:01:03]} 8. O-O {[%emt 0:00:20]} b6 {[%emt 0:00:55]} 9. Nbd2 {[%emt 0:00:19]} Bb7 {[%emt 0:01:22]} 10. Ne5 {[%emt 0:00:57]} Qc7 {[%emt 0:16:08]} 11. f4 {[%emt 0:05:40]} c5 {[%emt 0:01:27]} 12. Nxd7 {[%emt 0:01:51]} Qxd7 {[%emt 0:01:40]} 13. dxc5 {[%emt 0:01:17]} Be7 {[%emt 0:05:50]} 14. cxb6 {[%emt 0:03:36]} Qc6 {[%emt 0:08:41]} 15. Qe2 {[%emt 0:04:52]} axb6 {[%emt 0:03:46]} 16. a4 {[%emt 0:11:46]} Rfd8 {[%emt 0:06:50]} 17. Rad1 {[%emt 0:01:52]} Ba6 {[%emt 0:05:57]} 18. Bd4 {[%emt 0:02:57]} Rac8 {[%emt 0:03:30]} 19. Qf3 {[%emt 0:03:13]} Bb7 {[%emt 0:04:10]} 20. Qh3 {[%emt 0:05:04]} Ne4 {[%emt 0:04:22]} 1/2-1/2

[Event "Bruges Masters 2018"]
[Site "Brugge"]
[Date "2018.08.16"]
[Round "8"]
[White "Frayna, Janelle Mae"]
[Black "Galunova, Tsveta"]
[Result "0-1"]
[ECO "D23"]
[WhiteElo "2278"]
[BlackElo "2148"]
[Annotator "NA"]
[PlyCount "26"]
[EventDate "2018.08.12"]
[EventType "swiss"]
[EventCountry "BEL"]
[SourceTitle "playchess.com"]
[Source "ChessBase"]
[SourceQuality "1"]
[TimeControl "5400+30"]

1. d4 {[%emt 0:00:00]} d5 {[%emt 0:00:30]} 2. c4 {[%emt 0:00:00]} c6 {[%emt 0:00:05]} 3. Nf3 {[%emt 0:00:00]} Nf6 {[%emt 0:00:07]} 4. Qc2 {[%emt 0:00:00]} dxc4 {[%emt 0:01:26]} 5. Qxc4 {[%emt 0:00:05]} Bf5 {[%emt 0:00:38]} 6. g3 {[%emt 0:01:16]} e6 {[%emt 0:02:30]} 7. Bg2 {[%emt 0:00:08]} Nbd7 {[%emt 0:01:21]} 8. O-O {[%emt 0:02:36]} Be7 {[%emt 0:01:10]} 9. Rd1 {[%emt 0:04:06]} O-O {[%emt 0:01:01]} 10. Nc3 {[%emt 0:02:13]} Bc2 {[%emt 0:02:49]} 11. Re1 {[%emt 0:01:25]} Nb6 {[%emt 0:04:38]} 12. b3 {[%emt 0:02:10]} Nxc4 {[%emt 0:00:29]} 13. bxc4 {[%emt 0:00:02]} Ne4 {[%emt 0:01:17]} 0-1

[Event "Bruges Masters 2018"]
[Site "Brugge"]
[Date "2018.08.16"]
[Round "8"]
[White "Faure, Stephane"]
[Black "Mehar, Chinna Reddy C H"]
[Result "0-1"]
[ECO "B68"]
[WhiteElo "2116"]
[BlackElo "2345"]
[Annotator "NA"]
[PlyCount "56"]
[EventDate "2018.08.12"]
[EventType "swiss"]
[EventCountry "BEL"]
[SourceTitle "playchess.com"]
[Source "ChessBase"]
[SourceQuality "1"]
[TimeControl "5400+30"]

1. e4 {[%emt 0:00:00]} c5 {[%emt 0:11:00]} 2. Nf3 {[%emt 0:00:00]} d6 {[%emt 0:00:06]} 3. d4 {[%emt 0:00:00]} cxd4 {[%emt 0:00:06]} 4. Nxd4 {[%emt 0:00:00]} Nf6 {[%emt 0:00:09]} 5. Nc3 {[%emt 0:00:00]} Nc6 {[%emt 0:00:12]} 6. Bg5 {[%emt 0:01:20]} e6 {[%emt 0:00:09]} 7. Qd2 {[%emt 0:00:39]} a6 {[%emt 0:00:07]} 8. O-O-O {[%emt 0:00:55]} Bd7 {[%emt 0:00:06]} 9. f4 {[%emt 0:01:48]} Be7 {[%emt 0:00:15]} 10. Nb3 {[%emt 0:03:53]} b5 {[%emt 0:00:34]} 11. Bd3 {[%emt 0:03:11]} h6 {[%emt 0:07:33]} 12. h4 {[%emt 0:08:14]} Qc7 {[%emt 0:06:07]} 13. e5 {[%emt 0:05:23]} dxe5 {[%emt 0:02:12]} 14. Bxf6 {[%emt 0:08:30]} gxf6 {[%emt 0:00:20]} 15. Rh3 {[%emt 0:06:54]} exf4 {[%emt 0:05:03]} 16. Bxb5 {[%emt 0:04:56]} axb5 {[%emt 0:03:04]} 17. Nxb5 {[%emt 0:00:13]} Qb7 {[%emt 0:03:03]} 18. Nd6+ {[%emt 0:07:23]} Bxd6 {[%emt 0:00:05]} 19. Qxd6 {[%emt 0:00:05]} Rxa2 {[%emt 0:05:03]} 20. Kb1 {[%emt 0:00:27]} Ra7 {[%emt 0:00:14]} 21. Rc3 {[%emt 0:02:57]} Qc7 {[%emt 0:08:31]} 22. Qc5 {[%emt 0:01:57]} Rg8 {[%emt 0:01:05]} 23. Qf2 {[%emt 0:04:28]} Rg3 {[%emt 0:03:14]} 24. Rxg3 {[%emt 0:03:31]} fxg3 {[%emt 0:00:27]} 25. Qxf6 {[%emt 0:00:54]} Qe5 {[%emt 0:02:24]} 26. Qxh6 {[%emt 0:02:36]} Na5 {[%emt 0:00:23]} 27. Nxa5 {[%emt 0:02:02]} Qxa5 {[%emt 0:00:46]} 28. Qh8+ {[%emt 0:01:18]} Ke7 {[%emt 0:00:04]} 0-1

[Event "Bruges Masters 2018"]
[Site "Brugge"]
[Date "2018.08.16"]
[Round "8"]
[White "Advait, Bagri"]
[Black "Miciano, John Marvin"]
[Result "1/2-1/2"]
[ECO "B06"]
[WhiteElo "1926"]
[BlackElo "2381"]
[Annotator "NA"]
[PlyCount "57"]
[EventDate "2018.08.12"]
[EventType "swiss"]
[EventCountry "BEL"]
[SourceTitle "playchess.com"]
[Source "ChessBase"]
[SourceQuality "1"]
[TimeControl "5400+30"]

1. e4 {[%emt 0:05:22]} d6 {[%emt 0:00:00]} 2. d4 {[%emt 0:00:20]} g6 {[%emt 0:00:07]} 3. Nc3 {[%emt 0:00:22]} Bg7 {[%emt 0:00:08]} 4. Be3 {[%emt 0:00:22]} c6 {[%emt 0:00:16]} 5. Qd2 {[%emt 0:00:26]} b5 {[%emt 0:00:17]} 6. a3 {[%emt 0:03:29]} a6 {[%emt 0:00:28]} 7. h4 {[%emt 0:02:20]} h5 {[%emt 0:00:10]} 8. f3 {[%emt 0:03:12]} Nf6 {[%emt 0:02:15]} 9. Nh3 {[%emt 0:02:04]} Bxh3 {[%emt 0:00:16]} 10. Rxh3 {[%emt 0:01:15]} Nbd7 {[%emt 0:00:27]} 11. Be2 {[%emt 0:09:03]} c5 {[%emt 0:18:10]} 12. dxc5 {[%emt 0:07:46]} dxc5 {[%emt 0:00:05]} 13. Kf2 {[%emt 0:11:40]} O-O {[%emt 0:00:49]} 14. Rd1 {[%emt 0:01:27]} Qc8 {[%emt 0:01:00]} 15. Nd5 {[%emt 0:04:29]} Nxd5 {[%emt 0:01:17]} 16. Qxd5 {[%emt 0:00:17]} Rd8 {[%emt 0:00:20]} 17. c4 {[%emt 0:12:45]} e6 {[%emt 0:05:09]} 18. Qd2 {[%emt 0:01:22]} bxc4 {[%emt 0:01:12]} 19. Bxc4 {[%emt 0:03:12]} Qc7 {[%emt 0:01:01]} 20. Qe2 {[%emt 0:01:00]} Rab8 {[%emt 0:04:42]} 21. b3 {[%emt 0:01:45]} Ne5 {[%emt 0:04:28]} 22. Rxd8+ {[%emt 0:01:44]} Qxd8 {[%emt 0:00:10]} 23. Rh1 {[%emt 0:02:00]} Nxc4 {[%emt 0:01:00]} 24. Qxc4 {[%emt 0:00:10]} Bd4 {[%emt 0:00:22]} 25. Ke2 {[%emt 0:03:16]} e5 {[%emt 0:02:07]} 26. Bg5 {[%emt 0:01:54]} Qa5 {[%emt 0:01:22]} 27. a4 {[%emt 0:02:34]} Qb4 {[%emt 0:00:55]} 28. Qxb4 {[%emt 0:02:12]} Rxb4 {[%emt 0:00:05]} 29. Rc1 {[%emt 0:01:28]} 1/2-1/2

[Event "Bruges Masters 2018"]
[Site "Brugge"]
[Date "2018.08.16"]
[Round "8"]
[White "Ouaki, Mark"]
[Black "Tomov, Georgi"]
[Result "0-1"]
[ECO "A35"]
[WhiteElo "1592"]
[BlackElo "2307"]
[Annotator "NA"]
[PlyCount "42"]
[EventDate "2018.08.12"]
[EventType "swiss"]
[EventCountry "BEL"]
[SourceTitle "playchess.com"]
[Source "ChessBase"]
[SourceQuality "1"]
[TimeControl "5400+30"]

1. e4 {[%emt 0:00:00]} c6 {[%emt 0:00:00]} 2. d4 {[%emt 0:00:00]} d5 {[%emt 0:00:00]} 3. exd5 {[%emt 0:00:24]} cxd5 {[%emt 0:00:00]} 4. c4 {[%emt 0:00:33]} Nf6 {[%emt 0:00:08]} 5. Nc3 {[%emt 0:00:51]} Nc6 {[%emt 0:01:13]} 6. Nf3 {[%emt 0:01:05]} g6 {[%emt 0:00:24]} 7. cxd5 {[%emt 0:02:59]} Nxd5 {[%emt 0:00:02]} 8. Bc4 {[%emt 0:00:27]} Nb6 {[%emt 0:00:15]} 9. Bb5 {[%emt 0:01:06]} Bg7 {[%emt 0:00:46]} 10. O-O {[%emt 0:01:48]} O-O {[%emt 0:00:09]} 11. Be3 {[%emt 0:00:58]} Bf5 {[%emt 0:03:37]} 12. Bxc6 {[%emt 0:03:28]} bxc6 {[%emt 0:00:05]} 13. Rc1 {[%emt 0:01:05]} Nd5 {[%emt 0:06:14]} 14. Ne2 {[%emt 0:10:56]} Qb6 {[%emt 0:05:38]} 15. b3 {[%emt 0:09:11]} Rac8 {[%emt 0:10:48]} 16. Re1 {[%emt 0:15:17]} Rfd8 {[%emt 0:05:21]} 17. Nf4 {[%emt 0:09:14]} e5 {[%emt 0:06:50]} 18. Nxd5 {[%emt 0:02:31]} Rxd5 {[%emt 0:00:08]} 19. Qe2 {[%emt 0:17:08]} exd4 {[%emt 0:01:18]} 20. Bd2 {[%emt 0:00:14]} h6 {[%emt 0:06:00]} 21. Qc4 {[%emt 0:05:46]} Qd8 {[%emt 0:04:57]} 0-1

[Event "Bruges Masters 2018"]
[Site "Brugge"]
[Date "2018.08.16"]
[Round "9"]
[White "Boffa, Mauro"]
[Black "Geirnaert, Steven"]
[Result "0-1"]
[ECO "E46"]
[WhiteElo "2216"]
[BlackElo "2427"]
[Annotator "RC"]
[PlyCount "68"]
[EventDate "2018.08.12"]
[EventType "swiss"]
[EventCountry "BEL"]
[SourceTitle "playchess.com"]
[Source "ChessBase"]
[SourceQuality "1"]
[TimeControl "5400+30"]

1. d4 {[%emt 0:00:00]} Nf6 {[%emt 0:02:44]} 2. c4 {[%emt 0:00:00]} e6 {[%emt 0:00:03]} 3. Nc3 {[%emt 0:00:00]} Bb4 {[%emt 0:00:18]} 4. e3 {[%emt 0:00:00]} O-O {[%emt 0:00:12]} 5. Nge2 {[%emt 0:00:00]} c6 {[%emt 0:00:26]} 6. a3 {[%emt 0:01:33]} Ba5 {[%emt 0:00:19]} 7. Ng3 {[%emt 0:07:02]} d5 {[%emt 0:00:34]} 8. cxd5 {[%emt 0:08:45]} exd5 {[%emt 0:00:11]} 9. Bd3 {[%emt 0:00:55]} Re8 {[%emt 0:02:17]} 10. b4 {[%emt 0:05:41]} Bc7 {[%emt 0:00:10]} 11. f3 {[%emt 0:01:09]} Bf4 {[%emt 0:13:14]} 12. Kf2 {[%emt 0:01:43]} Bd6 {[%emt 0:04:59]} 13. Bd2 {[%emt 0:07:48]} b6 {[%emt 0:00:39]} 14. Rb1 {[%emt 0:05:35]} Nbd7 {[%emt 0:06:04]} 15. Nf5 {[%emt 0:11:57]} Bf8 {[%emt 0:01:58]} 16. Rf1 {[%emt 0:03:29]} g6 {[%emt 0:10:13]} 17. Ng3 {[%emt 0:00:34]} h5 {[%emt 0:00:07]} 18. Kg1 {[%emt 0:00:26]} h4 {[%emt 0:00:43]} 19. Nge2 {[%emt 0:00:40]} Nh5 {[%emt 0:00:30]} 20. Qc2 {[%emt 0:02:21]} Bg7 {[%emt 0:07:27]} 21. b5 {[%emt 0:02:26]} c5 {[%emt 0:01:41]} 22. Nxd5 {[%emt 0:04:08]} Bb7 {[%emt 0:00:34]} 23. Ndc3 {[%emt 0:04:55]} cxd4 {[%emt 0:01:14]} 24. exd4 {[%emt 0:01:42]} Nf8 {[%emt 0:00:13]} 25. d5 {[%emt 0:03:28]} Rc8 {[%emt 0:00:51]} 26. Qa2 {[%emt 0:01:02]} Rxe2 {[%emt 0:04:38]} 27. Nxe2 {[%emt 0:03:16]} Bxd5 {[%emt 0:00:07]} 28. Rb3 {[%emt 0:00:04]} Ne6 {[%emt 0:00:12]} 29. Bb4 {[%emt 0:07:55]} Nd4 {[%emt 0:01:32]} 30. Nc1 {[%emt 0:10:42]} Nxb3 {[%emt 0:00:36]} 31. Nxb3 {[%emt 0:01:30]} Bxb3 {[%emt 0:01:06]} 32. Qxb3 {[%emt 0:00:38]} Bd4+ {[%emt 0:00:12]} 33. Rf2 {[%emt 0:00:15]} Rc1+ {[%emt 0:00:17]} 34. Bf1 {[%emt 0:00:02]} Ng3 {[%emt 0:40:39]} 0-1